bitfinex-derivatives/quotes_SOLF0:USTF0_20251020
["timestamp","ask_amount","ask_price","bid_price","bid_amount"]
[1760966641976,3.39942188,191.72,191.6,8.28575725]
[1760966642673,3.39942188,191.72,191.61,6.46007725]
[1760966642880,3.39942188,191.72,191.6,8.28575725]
[1760966643983,4.6944,191.69,191.63,4.6957]
[1760966644789,2.17777336,191.68,191.63,4.6957]
[1760966645290,6.87257336,191.68,191.6,8.28575725]
[1760966645482,4.6948,191.68,191.6,8.28575725]
[1760966645679,6.87257336,191.68,191.6,8.28575725]
[1760966647591,6.87197336,191.7,191.63,4.6957]
[1760966648287,4.6944,191.69,191.63,4.6957]
[1760966648992,2.17777336,191.68,191.61,2.17777336]
[1760966649988,2.17777336,191.68,191.62,4.6959]
[1760966650991,4.6944,191.69,191.63,4.6956]
[1760966654591,4.49171965,191.75,191.65,2.17777336]
[1760966654894,2.17777336,191.75,191.65,2.17777336]
[1760966655792,4.6932,191.74,191.67,4.6947]
[1760966657095,4.6934,191.73,191.67,4.6947]
[1760966658602,6.87117336,191.73,191.67,4.6947]
[1760966660389,4.49518041,191.76,191.66,6.46007725]
[1760966660585,2.17777336,191.79,191.7,2.17777336]
[1760966660788,2.17777336,191.79,191.7,8.63785061]
[1760966660999,2.17777336,191.79,191.72,4.6935]
[1760966661989,4.6922,191.78,191.72,4.6935]
[1760966662796,2.17777336,191.79,191.72,4.6935]
[1760966664099,4.692,191.79,191.72,6.87127336]
[1760966667100,4.6922,191.78,191.72,4.6935]
[1760966667902,4.6922,191.78,191.72,6.87127336]
[1760966672814,4.6922,191.78,191.72,4.6935]
[1760966674615,2.17777336,191.79,191.72,4.6935]
[1760966674908,2.17777336,191.79,191.7,4.6939]
[1760966675113,2.17777336,191.77,191.7,4.6939]
[1760966675324,6.87027336,191.77,191.7,4.6939]
[1760966676806,4.6927,191.76,191.7,4.6939]
[1760966677514,2.17777336,191.75,191.68,4.6944]
[1760966677716,2.17777336,191.73,191.65,6.46007725]
[1760966677919,2.17777336,191.73,191.63,8.63785061]
[1760966678322,2.17777336,191.71,191.66,4.6949]
[1760966678819,2.17777336,191.71,191.66,9.55725538]
[1760966679723,6.87167336,191.71,191.66,4.86235538]
[1760966679921,2.17777336,191.69,191.64,4.86235538]
[1760966680219,13.85712675,191.78,191.64,4.86235538]
[1760966680220,4.47272675,191.77,191.64,4.86235538]
[1760966680427,2.17777336,191.68,191.64,4.86235538]
[1760966680627,2.17777336,191.68,191.63,4.86235538]
[1760966680827,2.17777336,191.66,191.63,4.86235538]
[1760966682424,2.17777336,191.66,191.61,4.6962]
[1760966682425,2.17777336,191.66,191.62,4.86235538]
[1760966682733,2.17777336,191.66,191.6,8.28575725]
[1760966682734,2.17777336,191.68,191.63,4.86235538]
[1760966683140,2.17777336,191.7,191.63,4.86235538]
[1760966683630,2.17777336,191.7,191.64,4.86235538]
[1760966684032,2.17777336,191.7,191.65,4.6951]
[1760966685724,2.17777336,191.7,191.63,4.6957]
[1760966688231,6.87197336,191.7,191.63,4.6957]
[1760966689333,4.6944,191.69,191.6,1.82568]
[1760966689534,2.17777336,191.68,191.6,1.82568]
[1760966690138,2.17777336,191.68,191.61,2.17777336]
[1760966690540,2.17777336,191.68,191.63,4.6957]
[1760966690937,4.6944,191.69,191.63,4.6957]
[1760966692040,4.6939,191.71,191.62,2.17777336]
[1760966692744,4.6939,191.71,191.64,2.17777336]
[1760966692935,4.6939,191.71,191.65,4.6952]
[1760966693638,2.17777336,191.67,191.6,1.82568]
[1760966694739,2.17777336,191.67,191.61,4.6961]
[1760966695140,4.6947,191.68,191.61,4.6961]
[1760966695342,6.87247336,191.68,191.62,4.6959]
[1760966695642,2.17777336,191.68,191.62,4.6959]
[1760966695843,2.17777336,191.7,191.62,4.6959]
[1760966696945,4.6944,191.69,191.62,4.6959]
[1760966700351,2.17777336,191.7,191.63,6.87337336]
[1760966700647,2.17777336,191.71,191.63,6.87337336]
[1760966701049,2.17777336,191.71,191.63,2.17777336]
[1760966701247,6.87117336,191.73,191.65,2.17777336]
[1760966701650,4.6937,191.72,191.65,6.87297336]
[1760966701839,2.17777336,191.73,191.65,4.6952]
[1760966702242,4.6931,191.74,191.66,2.17777336]
[1760966703248,2.17777336,191.77,191.68,2.17777336]
[1760966704351,2.17777336,191.77,191.7,2.17777336]
[1760966704544,4.50727515,191.81,191.7,2.17777336]
[1760966704747,7.90637979,191.81,191.68,3.39910464]
[1760966705543,4.6927,191.76,191.68,8.09360464]
[1760966706163,4.6927,191.76,191.69,4.6942]
[1760966706361,4.6922,191.78,191.68,3.39910464]
[1760966706750,7.90637979,191.81,191.71,4.6937]
[1760966708050,4.6925,191.77,191.71,4.6937]
[1760966710460,4.692,191.79,191.71,8.09280464]
[1760966711557,4.6923,191.78,191.67,3.39910464]
[1760966712163,4.6923,191.78,191.71,4.6937]
[1760966712353,4.6918,191.8,191.7,3.39910464]
[1760966713263,4.692,191.79,191.73,4.6932]
[1760966716159,3.39910464,191.75,191.6,1.82568]
[1760966716360,3.39910464,191.8,191.6,5.22478464]
[1760966716361,3.39910464,191.72,191.6,5.22478464]
[1760966716560,3.39910464,191.72,191.6,1.82568]
[1760966716962,3.39910464,191.69,191.6,1.82568]
[1760966717868,4.6946,191.68,191.6,1.82568]
[1760966719072,4.6946,191.68,191.6,6.52208]
[1760966719469,4.6946,191.68,191.6,1.82568]
[1760966719673,3.39910464,191.72,191.6,5.22478464]
[1760966721073,4.694,191.71,191.64,4.6954]
[1760966721666,4.694,191.71,191.65,4.6951]
[1760966721866,24.74,191.79,191.6,5.22478464]
[1760966722072,3.39910464,191.76,191.63,3.39910464]
[1760966722468,4.5098774,191.78,191.6,1.82568]
[1760966722673,3.39910464,191.68,191.6,1.82568]
[1760966724077,3.39910464,191.68,191.62,4.6959]
[1760966724479,3.39910464,191.68,191.6,1.82568]
[1760966724674,3.39910464,191.65,191.6,1.82568]
[1760966725075,3.39910464,191.65,191.61,4.6961]
[1760966725279,3.39910464,191.65,191.63,4.86445586]
[1760966725880,4.695,191.67,191.63,4.86445586]
[1760966727884,3.39910464,191.68,191.63,4.86445586]
[1760966728277,3.39910464,191.68,191.64,4.86445586]
[1760966728483,3.39910464,191.68,191.64,9.55985586]
[1760966728978,8.09300464,191.71,191.65,4.6952]
[1760966729175,8.09300464,191.71,191.65,9.55965586]
[1760966730187,3.39910464,191.71,191.65,4.86445586]
[1760966730493,3.39910464,191.71,191.66,4.6949]
[1760966731093,3.39910464,191.71,191.66,9.55935586]
[1760966732789,4.45128501,191.78,191.66,4.86445586]
[1760966732986,3.39910464,191.75,191.67,4.86445586]
[1760966733796,8.09210464,191.75,191.69,4.6942]
[1760966733989,3.39910464,191.78,191.67,4.86445586]
[1760966734190,3.39910464,191.78,191.7,4.86445586]
[1760966734993,4.6925,191.77,191.71,4.6937]
[1760966735388,3.39910464,191.8,191.7,4.86445586]
[1760966735589,4.6922,191.78,191.71,4.86445586]
[1760966735788,3.39910464,191.8,191.71,4.86445586]
[1760966736598,3.39910464,191.8,191.7,9.55835586]
[1760966736997,4.6925,191.77,191.7,9.55835586]
[1760966738298,4.6925,191.77,191.71,4.86445586]
[1760966746501,3.39910464,191.77,191.7,4.86445586]
[1760966747207,4.6929,191.75,191.7,4.86445586]
[1760966747701,4.6929,191.75,191.69,4.86445586]
[1760966748305,3.39910464,191.77,191.7,4.86445586]
[1760966749900,4.6927,191.76,191.71,4.6938]
[1760966756408,4.6927,191.76,191.7,4.86445586]
[1760966757106,4.6927,191.76,191.67,6.48594115]
[1760966757107,3.39910464,191.71,191.68,4.86445586]
[1760966757310,3.39910464,191.71,191.65,6.48594115]
[1760966757311,3.39910464,191.71,191.65,4.86445586]
[1760966758105,4.6942,191.7,191.65,4.86445586]
[1760966758308,3.39910464,191.71,191.65,4.86445586]
[1760966758504,3.39910464,191.71,191.64,4.86445586]
[1760966758706,3.39910464,191.68,191.64,4.86445586]
[1760966759712,3.39910464,191.68,191.62,9.56035586]
[1760966760205,3.39910464,191.68,191.61,4.86445586]
[1760966760206,3.39910464,191.65,191.61,4.86445586]
[1760966760409,9.31266994,191.73,191.6,1.82568]
[1760966760714,35.8664,191.74,191.6,1.82568]
[1760966760715,3.39910464,191.65,191.6,1.82568]
[1760966761010,3.39910464,191.67,191.6,6.69013586]
[1760966761409,3.39910464,191.67,191.61,4.86445586]
[1760966761618,3.39910464,191.67,191.62,4.86445586]
[1760966762210,3.39910464,191.67,191.61,4.86445586]
[1760966762515,3.39910464,191.69,191.62,4.86445586]
[1760966762714,4.6946,191.68,191.62,4.86445586]
[1760966764622,4.6946,191.68,191.61,4.86445586]
[1760966765316,4.6941,191.7,191.61,4.86445586]
[1760966765619,8.09320464,191.7,191.62,4.86445586]
[1760966765814,3.39910464,191.7,191.63,4.86445586]
[1760966766015,3.39910464,191.7,191.64,4.86445586]
[1760966766317,3.39910464,191.73,191.64,4.86445586]
[1760966766615,3.39910464,191.73,191.63,4.86445586]
[1760966766821,2.17709238,191.71,191.63,4.86445586]
[1760966767011,2.17709238,191.71,191.64,4.6953]
[1760966767316,2.17709238,191.71,191.64,9.55975586]
[1760966767520,2.17709238,191.73,191.65,4.6952]
[1760966767721,2.17709238,191.73,191.65,9.55965586]
[1760966767905,2.17709238,191.73,191.66,4.86445586]
[1760966768110,2.17709238,191.75,191.67,9.55915586]
[1760966768617,2.17709238,191.75,191.68,9.55885586]
[1760966768917,4.6922,191.78,191.69,4.86445586]
[1760966769112,6.86929238,191.78,191.69,4.86445586]
[1760966770015,6.86929238,191.78,191.7,4.6939]
[1760966770325,6.86929238,191.78,191.7,4.86445586]
[1760966770810,45.55709238,191.8,191.72,4.6934]
[1760966771011,2.17709238,191.8,191.72,4.6934]
[1760966771708,4.6916,191.81,191.72,4.6934]
[1760966772313,6.64253132,191.82,191.71,4.86445586]
[1760966772617,6.64253132,191.82,191.73,2.17709238]
[1760966772820,4.6909,191.83,191.75,2.17709238]
[1760966773120,2.17709238,191.84,191.75,2.17709238]
[1760966773520,2.17709238,191.84,191.76,4.6924]
[1760966774311,2.17709238,191.82,191.74,9.55755586]
[1760966774511,2.17709238,191.8,191.74,4.6931]
[1760966775517,2.17709238,191.8,191.73,4.86445586]
[1760966775825,2.17709238,191.78,191.72,4.86445586]
[1760966776021,2.17709238,191.78,191.71,4.86445586]
[1760966776718,2.17709238,191.78,191.71,9.55815586]
[1760966777623,2.17709238,191.78,191.72,9.55785586]
[1760966777823,2.17709238,191.8,191.72,9.55785586]
[1760966781227,6.86889238,191.8,191.72,9.55785586]
[1760966782030,2.17709238,191.8,191.73,4.86445586]
[1760966782326,6.86829238,191.82,191.73,4.86445586]
[1760966782920,6.86829238,191.82,191.74,4.86445586]
[1760966783130,6.86829238,191.82,191.74,4.693]
[1760966783815,6.86829238,191.82,191.74,9.55745586]
[1760966784219,6.86829238,191.82,191.71,8.66303353]
[1760966784220,2.17709238,191.8,191.73,4.86445586]
[1760966784527,2.17709238,191.8,191.72,9.55795586]
[1760966784919,2.17709238,191.78,191.72,9.55795586]
[1760966785119,2.17709238,191.78,191.72,4.6935]
[1760966785320,2.17709238,191.78,191.71,4.86445586]
[1760966785920,2.17709238,191.78,191.71,9.55815586]
[1760966786729,2.17709238,191.78,191.72,9.55795586]
[1760966788323,6.86939238,191.78,191.72,9.55795586]
[1760966788522,2.17709238,191.78,191.71,4.86445586]
[1760966788829,2.17709238,191.78,191.7,9.55845586]
[1760966789530,4.6925,191.77,191.71,4.6937]
[1760966789730,2.17709238,191.78,191.7,4.86445586]
[1760966790333,6.86939238,191.78,191.72,4.6935]
[1760966793731,4.6926,191.77,191.7,4.86445586]
[1760966793930,2.17709238,191.76,191.7,4.86445586]
[1760966794224,2.17709238,191.78,191.7,4.86445586]
[1760966794640,2.17709238,191.78,191.71,4.86445586]
[1760966794830,2.17709238,191.78,191.74,4.693]
[1760966795139,2.17709238,191.8,191.73,4.86445586]
[1760966796033,2.17709238,191.8,191.75,4.6928]
[1760966796742,6.86839238,191.82,191.75,4.6928]
[1760966799539,4.6913,191.82,191.75,4.6928]
[1760966799738,2.17709238,191.81,191.76,4.6925]
[1760966802045,4.6913,191.82,191.76,4.6925]
[1760966803943,6.86789238,191.84,191.77,4.6923]
[1760966804145,4.6908,191.84,191.77,4.6923]
[1760966805246,6.86749238,191.86,191.78,2.17709238]
[1760966805548,4.6904,191.86,191.78,2.17709238]
[1760966805950,4.6904,191.86,191.79,4.6918]
[1760966806149,4.6904,191.86,191.78,2.17709238]
[1760966806546,4.6898,191.88,191.8,2.17709238]
[1760966807451,4.6898,191.88,191.78,4.86445586]
[1760966807452,2.17709238,191.9,191.82,6.86809238]
[1760966809158,4.6896,191.89,191.82,6.86809238]
[1760966812253,4.6896,191.89,191.84,2.17709238]
[1760966812657,4.689,191.91,191.84,2.17709238]
[1760966813955,9.14087382,191.91,191.84,6.86769238]
[1760966814160,2.17709238,191.94,191.84,2.17709238]
[1760966814958,6.86589238,191.92,191.85,4.6903]
[1760966815351,6.86589238,191.92,191.84,2.17709238]
[1760966815352,2.17709238,191.92,191.82,7.03690742]
[1760966815553,2.17709238,191.9,191.83,4.6908]
[1760966816957,6.86649238,191.9,191.83,4.6908]
[1760966818259,4.46018811,191.94,191.8,4.85981504]
[1760966818260,2.17709238,191.86,191.8,4.85981504]
[1760966818459,2.17709238,191.84,191.76,4.85981504]
[1760966818654,2.17709238,191.84,191.77,4.85981504]
[1760966819765,2.17709238,191.84,191.77,4.85733326]
[1760966819958,2.17709238,191.84,191.79,4.6918]
[1760966822065,6.86789238,191.84,191.79,4.6918]
[1760966822862,2.17709238,191.84,191.79,4.6918]
[1760966823674,6.86739238,191.86,191.79,4.6918]
[1760966826668,4.6903,191.86,191.79,4.6918]
[1760966830170,4.6898,191.88,191.79,3.39617083]
[1760966830378,3.39617083,191.93,191.8,4.85733326]
[1760966830568,3.39617083,191.93,191.82,3.39617083]
[1760966830772,4.6895,191.89,191.83,4.6908]
[1760966831873,4.45839701,191.94,191.82,3.39617083]
[1760966832072,3.39617083,192.0,191.87,4.85733326]
[1760966832269,3.39617083,192.0,191.86,4.85733326]
[1760966832869,3.39617083,192.0,191.88,3.39617083]
[1760966833175,4.6883,191.94,191.88,3.39617083]
[1760966835078,4.6878,191.96,191.88,3.39617083]
[1760966835777,4.6878,191.96,191.88,8.25350409]
[1760966835978,4.6878,191.96,191.89,4.6893]
[1760966836977,4.6878,191.96,191.89,9.54663326]
[1760966837478,3.39617083,191.97,191.86,4.85733326]
[1760966837681,3.39617083,191.97,191.84,4.85733326]
[1760966837878,4.6888,191.92,191.84,9.54783326]
[1760966838073,4.6888,191.92,191.84,4.6905]
[1760966838769,4.6892,191.9,191.83,4.85733326]
[1760966838976,3.39617083,191.89,191.81,4.85733326]
[1760966839274,3.39617083,191.89,191.8,4.85733326]
[1760966839469,3.39617083,191.89,191.74,3.39617083]
[1760966839470,4.6903,191.86,191.79,4.85733326]
[1760966839674,3.39617083,191.89,191.79,4.85733326]
[1760966840188,3.39617083,191.89,191.8,9.54883326]
[1760966840189,4.6898,191.88,191.8,9.54883326]
[1760966841182,4.6901,191.87,191.8,4.6915]
[1760966845983,8.08567083,191.89,191.81,4.6913]
[1760966846778,4.6891,191.91,191.82,4.85349673]
[1760966846988,4.6891,191.91,191.83,4.85349673]
[1760966847186,4.6891,191.91,191.82,4.85349673]
[1760966847788,4.6894,191.9,191.83,4.6908]
[1760966848189,4.6894,191.9,191.83,9.54429673]
[1760966849785,4.6894,191.9,191.83,4.85349673]
[1760966854985,3.39617083,191.92,191.83,4.85349673]
[1760966854986,4.6889,191.92,191.83,4.85349673]
[1760966855295,3.39617083,191.94,191.85,4.85349673]
[1760966855497,3.39617083,191.97,191.85,4.85349673]
[1760966855688,3.39617083,191.97,191.87,4.85349673]
[1760966856895,4.6884,191.94,191.87,9.54329673]
[1760966859801,4.6884,191.94,191.87,4.6898]
[1760966860198,4.6884,191.94,191.88,4.6896]
[1760966860399,4.6884,191.94,191.86,4.85349673]
[1760966860995,4.6884,191.94,191.87,4.6898]
[1760966861196,15.25093201,192.0,191.88,4.85349673]
[1760966861197,4.6879,191.96,191.88,4.85349673]
[1760966861404,3.39617083,191.98,191.88,4.85349673]
[1760966861797,4.6876,191.97,191.89,4.6892]
[1760966862106,4.6876,191.97,191.89,9.54269673]
[1760966863011,4.6876,191.97,191.9,4.6891]
[1760966866107,4.6878,191.96,191.9,4.6891]
[1760966868612,3.39617083,191.99,191.88,9.54309673]
[1760966868808,7.82436542,191.99,191.88,4.6896]
[1760966869010,3.39617083,191.99,191.88,9.54309673]
[1760966869211,7.82586831,191.99,191.88,4.6896]
[1760966869407,3.39617083,191.96,191.87,4.85349673]
[1760966869719,3.39617083,191.96,191.85,4.85349673]
[1760966870415,3.39617083,191.96,191.86,4.85349673]
[1760966872013,4.689,191.92,191.86,4.85349673]
[1760966873820,4.6891,191.91,191.86,4.85349673]
[1760966876426,4.6893,191.9,191.86,4.85349673]
[1760966880416,3.39617083,191.96,191.86,4.85349673]
[1760966880622,4.6895,191.89,191.86,4.85349673]
[1760966882230,4.6895,191.89,191.85,4.85966408]
[1760966882430,4.6898,191.88,191.85,4.85966408]
[1760966882620,3.39617083,191.93,191.85,4.85966408]
[1760966882925,3.39617083,191.93,191.84,4.85966408]
[1760966884429,3.39617083,191.96,191.86,4.85966408]
[1760966884732,3.39617083,191.97,191.87,2.85966408]
[1760966886136,4.6883,191.94,191.87,7.54956408]
[1760966887415,4.6883,191.94,191.87,4.6899]
[1760966887820,4.6886,191.93,191.87,4.6899]
[1760966888528,4.46731239,191.96,191.85,6.48594115]
[1760966888826,4.46731239,191.99,191.91,2.17075629]
[1760966889430,4.46731239,191.99,191.89,2.17075629]
[1760966889618,2.17075629,191.98,191.89,2.17075629]
[1760966890133,4.6878,191.96,191.9,4.6891]
[1760966890519,2.17075629,191.98,191.89,2.17075629]
[1760966891025,4.688,191.95,191.89,6.86015629]
[1760966893425,4.6883,191.94,191.89,6.48594115]
[1760966893734,4.6883,191.94,191.88,6.48594115]
[1760966894133,4.6883,191.94,191.89,4.6894]
[1760966894333,4.6883,191.94,191.89,6.86015629]
[1760966896128,2.17075629,191.96,191.88,8.65669744]
[1760966896331,2.17075629,191.96,191.88,2.17075629]
[1760966897233,4.6888,191.92,191.87,4.6899]
[1760966898325,4.6888,191.92,191.87,11.17584115]
[1760966899740,4.6888,191.92,191.87,4.6899]
[1760966901428,4.6888,191.92,191.88,2.17075629]
[1760966906532,4.6883,191.94,191.88,6.86035629]
[1760966906932,9.22546663,191.94,191.88,6.86035629]
[1760966907137,4.6883,191.94,191.88,6.86035629]
[1760966907334,4.5373269,191.95,191.89,4.6894]
[1760966907637,4.53715427,191.95,191.89,4.6894]
[1760966907838,4.53715427,191.97,191.89,4.6894]
[1760966908135,4.53715427,191.96,191.89,4.6894]
[1760966908437,4.6883,191.94,191.89,4.6894]
[1760966912631,4.6883,191.94,191.9,2.17075629]
[1760966913538,4.6878,191.96,191.9,2.17075629]
[1760966914439,4.6881,191.95,191.9,2.17075629]
[1760966915730,9.22624948,191.95,191.9,2.17075629]
[1760966915940,4.6881,191.95,191.9,2.17075629]
[1760966916536,9.22624948,191.95,191.9,2.17075629]
[1760966916734,4.6881,191.95,191.9,2.17075629]
[1760966917338,9.22619166,191.95,191.9,2.17075629]
[1760966917629,4.6881,191.95,191.9,6.85985629]
[1760966918030,4.53804482,191.96,191.9,2.17075629]
[1760966918242,4.537746,191.96,191.9,2.17075629]
[1760966918536,4.6876,191.97,191.9,2.17075629]
[1760966918739,6.70788058,192.01,191.92,2.17075629]
[1760966918935,4.53712429,192.0,191.92,2.17075629]
[1760966919142,4.53712429,191.99,191.94,2.17075629]
[1760966919342,4.53566079,192.0,191.94,2.17075629]
[1760966919537,4.53566079,191.99,191.94,2.17075629]
[1760966919740,4.53566079,192.0,191.93,4.6884]
[1760966919948,9.22286079,191.99,191.93,4.6884]
[1760966920136,4.53566079,191.98,191.93,4.6884]
[1760966920442,4.6872,191.99,191.93,4.6884]
[1760966920945,9.2222794,191.99,191.93,4.6884]
[1760966921141,4.6872,191.99,191.93,4.6884]
[1760966921540,9.22172455,191.99,191.93,4.6884]
[1760966921743,4.6872,191.99,191.93,4.6884]
[1760966922345,9.22172455,191.99,191.93,4.6884]
[1760966922545,4.6872,191.99,191.93,6.85915629]
[1760966923139,4.53381723,192.0,191.93,6.85915629]
[1760966924742,4.53381723,192.0,191.93,4.6884]
[1760966924945,9.22071723,192.0,191.93,4.6884]
[1760966926043,4.6871,191.99,191.93,4.6884]
[1760966927450,6.85735629,192.01,191.94,4.6881]
[1760966927844,6.85735629,192.01,191.93,2.17075629]
[1760966927845,4.53173856,192.04,191.93,6.48594115]
[1760966928143,6.70249485,192.07,191.95,6.48594115]
[1760966928349,2.17075629,192.05,191.95,6.48594115]
[1760966928547,6.70249485,192.05,191.95,8.65669744]
[1760966928752,4.53173856,192.04,191.95,2.17075629]
[1760966929946,9.21763856,192.04,191.95,6.85865629]
[1760966930253,4.6859,192.04,191.95,6.85865629]
[1760966930451,6.85665629,192.04,191.95,6.85865629]
[1760966930854,4.6862,192.03,191.95,6.85865629]
[1760966931154,4.6862,192.03,191.95,4.6879]
[1760966933055,2.17075629,192.02,191.95,4.6879]
[1760966934256,2.17075629,192.02,191.96,4.6876]
[1760966935152,4.6862,192.03,191.96,4.6876]
[1760966935358,2.17075629,192.01,191.96,4.6876]
[1760966939759,2.17075629,192.03,191.93,8.65669744]
[1760966940146,2.17075629,192.03,191.93,2.17075629]
[1760966941260,2.17075629,192.03,191.99,4.6869]
[1760966944259,2.17075629,192.01,191.99,4.6869]
[1760966944854,2.17075629,192.03,191.99,4.6869]
[1760966945455,4.6853,192.06,192.0,4.6866]
[1760966945658,2.17075629,192.04,192.0,4.6866]
[1760966948764,3.38932527,192.07,192.0,4.6866]
[1760966948968,8.07442527,192.07,192.0,4.6866]
[1760966949767,4.6851,192.07,192.0,4.6866]
[1760966950271,8.07442527,192.07,192.0,4.6866]
[1760966952371,8.07442527,192.07,191.93,25.44]
[1760966952768,8.07442527,192.07,191.92,3.38932527]
[1760966952968,8.07442527,192.07,191.99,4.6868]
[1760966953369,8.07442527,192.07,191.92,3.38932527]
[1760966954071,4.6841,192.11,191.92,3.38932527]
[1760966954372,3.38932527,192.16,192.02,3.38932527]
[1760966954573,3.38932527,192.16,192.03,4.6859]
[1760966955171,3.38932527,192.2,192.03,4.6859]
[1760966955371,3.38932527,192.15,192.03,4.6859]
[1760966957472,0.9061792,192.21,192.02,3.38932527]
[1760966957777,3.38932527,192.18,192.05,3.38932527]
[1760966958272,4.6826,192.17,192.08,3.38932527]
[1760966958472,15.3286293,192.21,192.11,3.38932527]
[1760966958687,4.29525678,192.24,192.11,3.38932527]
[1760966958873,4.6822,192.19,192.11,3.38932527]
[1760966959377,4.6822,192.19,192.08,3.38932527]
[1760966959974,4.6822,192.19,192.08,8.07392527]
[1760966960472,4.6825,192.18,192.08,8.07392527]
[1760966961677,4.6827,192.17,192.08,8.07392527]
[1760966962177,4.6827,192.17,192.08,4.6846]
[1760966962766,0.90569573,192.28,192.11,3.38932527]
[1760966962975,3.38932527,192.25,192.1,27.3]
[1760966963380,8.07072527,192.22,192.11,4.6838]
[1760966963570,3.38932527,192.22,192.11,4.6838]
[1760966964375,3.38932527,192.19,192.09,4.6845]
[1760966964679,3.38932527,192.16,192.02,3.38932527]
[1760966965066,4.6831,192.15,192.05,4.6854]
[1760966965271,3.38932527,192.13,191.99,3.38932527]
[1760966965474,3.38932527,192.13,192.02,4.686]
[1760966965882,3.38932527,192.1,191.97,3.38932527]
[1760966966078,3.38932527,192.1,191.93,3.38932527]
[1760966966277,3.38932527,192.1,191.94,16.56]
[1760966966583,3.38932527,192.1,191.93,3.38932527]
[1760966966768,3.38932527,192.07,191.93,3.38932527]
[1760966966970,3.38932527,192.07,191.98,4.687]
[1760966967380,3.38932527,192.07,191.93,3.38932527]
[1760966967574,4.6853,192.06,191.96,4.6877]
[1760966967776,8.07462527,192.06,191.96,4.6877]
[1760966969773,8.07462527,192.06,191.82,15.63]
[1760966969774,3.38932527,192.06,191.94,4.6881]
[1760966969976,3.38932527,192.03,191.94,4.6881]
[1760966970170,4.6863,192.02,191.87,3.38932527]
[1760966970374,3.38932527,192.1,191.85,3.38932527]
[1760966970375,3.38932527,192.0,191.85,3.38932527]
[1760966970782,3.38932527,192.0,191.86,43.2]
[1760966970982,3.38932527,192.0,191.85,3.38932527]
[1760966971380,3.38932527,192.0,191.86,43.2]
[1760966971677,8.07622527,192.0,191.87,43.2]
[1760966971883,3.38932527,192.0,191.84,3.38932527]
[1760966972985,4.6874,191.98,191.89,4.6893]
[1760966974189,4.6874,191.98,191.86,4.69]
[1760966974377,3.38932527,191.94,191.81,181.52932527]
[1760966974677,3.38932527,191.94,191.81,138.32932527]
[1760966975072,3.38932527,192.01,191.84,3.38932527]
[1760966975279,3.38932527,192.01,191.87,3.38932527]
[1760966976075,8.07582527,192.01,191.9,4.6891]
[1760966976680,4.6865,192.01,191.9,4.6891]
[1760966976877,4.6865,192.01,191.91,4.6887]
[1760966977081,4.6859,192.04,191.9,3.38932527]
[1760966977286,3.38932527,192.06,191.9,3.38932527]
[1760966978990,4.6863,192.02,191.93,4.6884]
[1760966980483,4.6863,192.02,191.9,3.38932527]
[1760966980695,4.6855,192.05,191.93,3.38932527]
[1760966981791,3.38932527,192.07,191.95,4.6878]
[1760966983091,4.6857,192.05,191.95,4.6878]
[1760966983590,3.38932527,192.07,191.95,4.6878]
[1760966985092,4.6859,192.04,191.95,4.6878]
[1760966985995,4.6859,192.04,191.96,4.6875]
[1760966986389,13.58,192.16,191.94,3.38932527]
[1760966986688,3.38932527,192.11,191.97,3.38932527]
[1760966987796,4.6846,192.09,192.01,4.6863]
[1760966988598,4.6841,192.11,192.01,4.6863]
[1760966988799,3.38932527,192.13,192.03,4.686]
[1760966989300,3.38932527,192.14,192.03,4.686]
[1760966990797,3.38932527,192.11,192.03,4.686]
[1760966991096,8.07352527,192.11,192.03,4.686]
[1760966995997,8.07352527,192.11,192.04,4.6856]
[1760966996397,4.6847,192.09,192.01,4.6863]
[1760966996598,4.6847,192.09,191.96,3.38932527]
[1760966997899,4.6847,192.09,192.03,4.6859]
[1760967000405,3.38932527,192.11,192.04,4.6856]
[1760967000607,3.38932527,192.11,191.94,9.3761]
[1760967000803,4.6847,192.09,192.02,4.686]
[1760967001008,3.38932527,192.1,191.96,3.38932527]
[1760967001307,4.685,192.08,191.96,3.38932527]
[1760967001506,4.685,192.08,191.8,5.22591527]
[1760967001507,3.38932527,192.07,191.91,3.38932527]
[1760967001718,3.38932527,192.07,191.91,46.58932527]
[1760967001899,3.38932527,192.07,191.99,4.6869]
[1760967002096,3.38932527,192.1,191.99,4.6869]
[1760967002297,3.38932527,192.2,191.97,3.38932527]
[1760967002298,12.52932527,192.2,191.97,3.38932527]
[1760967002606,3.38932527,192.14,191.97,3.38932527]
[1760967003005,4.6842,192.11,192.04,4.6856]